bitfinex-derivatives/quotes_BTCF0:USTF0_20250710
["timestamp","ask_amount","ask_price","bid_price","bid_amount"]
[1752188157682,0.29826101,116190.0,116180.0,0.74229]
[1752188157870,0.33076101,116190.0,116180.0,0.74229]
[1752188158274,0.33076101,116190.0,116180.0,0.76549801]
[1752188158470,0.33076101,116190.0,116180.0,0.71339]
[1752188158883,0.33076101,116190.0,116180.0,0.73659772]
[1752188159083,0.33076101,116190.0,116180.0,0.71339]
[1752188159280,0.33076101,116190.0,116180.0,0.11363]
[1752188159583,0.36106101,116190.0,116180.0,0.71271]
[1752188159778,0.36106101,116190.0,116180.0,0.71347]
[1752188160085,0.14093,116190.0,116180.0,0.71347]
[1752188160284,0.11063,116190.0,116180.0,0.71347]
[1752188160883,0.11063,116190.0,116180.0,1.07427]
[1752188161085,0.33076101,116190.0,116180.0,1.07427]
[1752188161285,0.28498101,116190.0,116180.0,1.07427]
[1752188161486,0.06485,116190.0,116180.0,1.10487]
[1752188162076,0.06485,116190.0,116180.0,0.74407]
[1752188163374,0.33076101,116190.0,116180.0,0.74407]
[1752188163575,0.06485,116190.0,116180.0,0.74407]
[1752188164085,0.28498101,116190.0,116180.0,0.74407]
[1752188164486,0.28498101,116190.0,116180.0,1.10487]
[1752188164984,0.28498101,116190.0,116180.0,0.74407]
[1752188165786,0.06485,116190.0,116180.0,0.74407]
[1752188166085,0.28498101,116190.0,116180.0,0.74407]
[1752188166386,0.22113101,116190.0,116180.0,0.66512]
[1752188166887,0.001,116190.0,116180.0,0.66512]
[1752188167083,0.22113101,116190.0,116180.0,0.66512]
[1752188167387,0.001,116190.0,116180.0,0.66512]
[1752188167587,0.22113101,116190.0,116180.0,0.66512]
[1752188168287,0.25293101,116190.0,116180.0,0.74762]
[1752188169592,0.25293101,116190.0,116180.0,0.14786]
[1752188169783,0.25293101,116190.0,116180.0,0.74686]
[1752188169984,0.25293101,116190.0,116180.0,0.74754]
[1752188170288,0.0328,116190.0,116180.0,0.74754]
[1752188170493,0.25293101,116190.0,116180.0,0.74754]
[1752188171192,0.0328,116190.0,116180.0,0.74754]
[1752188171391,0.25293101,116190.0,116180.0,0.74754]
[1752188171889,0.0328,116190.0,116180.0,0.74754]
[1752188172091,0.25293101,116190.0,116180.0,0.74754]
[1752188172390,0.25293101,116190.0,116180.0,0.08418]
[1752188172690,0.25293101,116190.0,116180.0,0.001]
[1752188172691,2.14222202,116190.0,116180.0,0.001]
[1752188172894,2.14222202,116190.0,116180.0,0.05047]
[1752188175096,1.70196,116190.0,116180.0,0.05047]
[1752188175284,2.14222202,116190.0,116180.0,0.05047]
[1752188181288,2.14222202,116190.0,116180.0,0.001]
[1752188184499,0.0466,116180.0,116160.0,0.11512169]
[1752188184700,1.89057101,116170.0,116160.0,0.14654169]
[1752188184999,1.89921503,116170.0,116160.0,0.11514169]
[1752188185498,1.89921503,116170.0,116160.0,0.11714169]
[1752188185800,1.89921503,116170.0,116160.0,0.11814169]
[1752188186000,1.89921503,116170.0,116160.0,0.11614169]
[1752188186200,1.89057101,116170.0,116160.0,0.12014169]
[1752188187701,1.89900869,116170.0,116160.0,0.12014169]
[1752188190904,2.4799397,116170.0,116160.0,0.00672169]
[1752188191107,2.4799397,116170.0,116160.0,0.00572169]
[1752188191300,0.03266,116150.0,116140.0,0.0801]
[1752188191497,0.03266,116150.0,116140.0,0.48099669]
[1752188191804,0.03266,116150.0,116140.0,0.5036]
[1752188193810,0.41783768,116170.0,116150.0,0.0494]
[1752188194105,0.08226,116170.0,116160.0,0.14172]
[1752188194705,0.30139101,116170.0,116160.0,0.14172]
[1752188195313,0.03466,116170.0,116160.0,0.14172]
[1752188195514,0.03866,116170.0,116160.0,0.14172]
[1752188195714,0.25879101,116170.0,116160.0,0.14172]
[1752188197217,0.30539101,116170.0,116160.0,0.14172]
[1752188200417,0.66619101,116170.0,116160.0,0.14172]
[1752188200625,0.66619101,116170.0,116160.0,0.74148]
[1752188200916,0.66619101,116170.0,116160.0,0.14248]
[1752188201120,0.66619101,116170.0,116160.0,0.14172]
[1752188201121,0.69759101,116170.0,116160.0,0.14172]
[1752188203014,0.47746,116170.0,116160.0,0.14172]
[1752188203214,0.69759101,116170.0,116160.0,0.14172]
[1752188211231,0.66619101,116170.0,116160.0,0.11112]
[1752188211423,0.69649101,116170.0,116160.0,0.11112]
[1752188215038,0.69649101,116170.0,116150.0,0.68087]
[1752188215240,0.87973202,116160.0,116150.0,0.12481565]
[1752188215439,0.94303202,116160.0,116150.0,0.09172565]
[1752188215835,0.94303202,116160.0,116150.0,0.08163]
[1752188216036,0.04801,116150.0,116140.0,0.08094]
[1752188216340,0.29880101,116150.0,116140.0,0.11404]
[1752188216538,0.65960101,116150.0,116140.0,0.11404]
[1752188216741,0.69170101,116150.0,116140.0,0.11404]
[1752188217140,0.76156372,116150.0,116140.0,0.11404]
[1752188217737,0.76156372,116150.0,116140.0,0.14504]
[1752188218442,1.36120372,116150.0,116140.0,0.14504]
[1752188219242,1.36120372,116150.0,116140.0,0.14604]
[1752188220843,1.36120372,116150.0,116140.0,0.14804]
[1752188221631,1.36120372,116150.0,116140.0,0.15813663]
[1752188221839,1.36120372,116150.0,116140.0,0.14804]
[1752188224444,1.14107271,116150.0,116140.0,0.14804]
[1752188224639,1.32910372,116150.0,116140.0,0.14804]
[1752188229247,1.35980372,116150.0,116140.0,0.14804]
[1752188229840,1.35980372,116150.0,116140.0,0.1581368]
[1752188230040,1.35980372,116150.0,116140.0,0.0947268]
[1752188230240,1.39010372,116150.0,116140.0,0.0947268]
[1752188230443,1.39010372,116150.0,116140.0,0.0461968]
[1752188230643,1.39010372,116150.0,116140.0,0.0361]
[1752188231349,1.39010372,116150.0,116140.0,0.11704]
[1752188234248,1.35980372,116150.0,116140.0,0.11704]
[1752188234453,0.70008271,116150.0,116140.0,0.69797101]
[1752188234652,0.03066,116150.0,116140.0,0.69865101]
[1752188234951,0.03066,116150.0,116140.0,0.51162]
[1752188235145,0.03066,116150.0,116140.0,0.73175101]
[1752188235339,0.25079101,116150.0,116140.0,0.51162]
[1752188235544,0.29880101,116150.0,116140.0,0.51162]
[1752188235744,0.29880101,116150.0,116140.0,0.15082]
[1752188235945,0.29880101,116150.0,116140.0,0.15014]
[1752188241757,0.29880101,116150.0,116140.0,0.19672964]
[1752188241958,0.29880101,116150.0,116140.0,0.15014]
[1752188245560,0.07867,116150.0,116140.0,0.15014]
[1752188245752,0.29880101,116150.0,116140.0,0.15014]
[1752188250464,0.07867,116150.0,116140.0,0.15014]
[1752188250661,0.29880101,116150.0,116140.0,0.15014]
[1752188252163,0.03066,116150.0,116140.0,0.90325141]
[1752188252368,0.03313,116160.0,116150.0,0.07919]
[1752188252563,0.03313,116160.0,116150.0,0.36142101]
[1752188252771,0.03313,116160.0,116150.0,0.74133]
[1752188253070,0.08098,116160.0,116150.0,0.74133]
[1752188253562,1.23014101,116170.0,116150.0,1.10213]
[1752188253762,1.23014101,116170.0,116160.0,0.14129]
[1752188253958,1.30059643,116170.0,116160.0,0.14129]
[1752188254161,0.73436643,116170.0,116160.0,0.14129]
[1752188255364,0.51423542,116170.0,116160.0,0.14129]
[1752188255568,0.73436643,116170.0,116160.0,0.14129]
[1752188257171,0.73536643,116170.0,116160.0,0.14129]
[1752188258265,0.73636643,116170.0,116160.0,0.14129]
[1752188259668,0.73636643,116170.0,116160.0,0.14984505]
[1752188259866,0.73636643,116170.0,116160.0,0.14129]
[1752188260065,0.51623542,116170.0,116160.0,0.14129]
[1752188260265,0.73636643,116170.0,116160.0,0.14129]
[1752188260774,0.51623542,116170.0,116160.0,0.14129]
[1752188260978,0.73636643,116170.0,116160.0,0.14129]
[1752188262072,0.76926643,116170.0,116160.0,0.14129]
[1752188262474,0.8157355,116170.0,116160.0,0.14129]
[1752188262866,0.8157355,116170.0,116160.0,0.16482073]
[1752188263072,0.76926643,116170.0,116160.0,0.07865]
[1752188263376,0.80116643,116170.0,116160.0,0.07865]
[1752188263673,0.80116643,116170.0,116160.0,0.11119]
[1752188268677,0.58103542,116170.0,116160.0,0.11119]
[1752188268878,0.80116643,116170.0,116160.0,0.11119]
[1752188269377,1.40032643,116170.0,116160.0,0.12887329]
[1752188271472,1.31934643,116170.0,116160.0,0.08222329]
[1752188271774,1.36719643,116170.0,116160.0,0.12887329]
[1752188271978,1.14706542,116170.0,116160.0,0.12887329]
[1752188272179,1.36719643,116170.0,116160.0,0.12887329]
[1752188273175,1.36568643,116170.0,116160.0,0.09628329]
[1752188273381,1.36568643,116170.0,116160.0,0.12932329]
[1752188274980,1.31934643,116170.0,116160.0,0.04968329]
[1752188275175,1.36568643,116170.0,116160.0,0.12932329]
[1752188276680,1.31934643,116170.0,116160.0,0.04968329]
[1752188276883,1.36568643,116170.0,116160.0,0.12932329]
[1752188282187,1.36568643,116170.0,116160.0,0.12932329]
[1752188283384,1.36568643,116170.0,116160.0,0.15279445]
[1752188283688,1.39874643,116170.0,116160.0,0.12932329]
[1752188283888,0.08356,116170.0,116160.0,0.3494543]
[1752188284075,0.03722,116170.0,116160.0,0.9134851]
[1752188284282,0.03722,116170.0,116160.0,1.3403343]
[1752188284481,0.004,116170.0,116160.0,1.5124851]
[1752188284684,0.07956,116190.0,116180.0,0.03304]
[1752188284979,0.03322,116190.0,116180.0,0.72207101]
[1752188285185,0.03322,116190.0,116180.0,0.50262]
[1752188285380,0.29969101,116190.0,116180.0,0.50262]
[1752188285586,0.29969101,116190.0,116180.0,0.52088772]
[1752188286582,0.29969101,116190.0,116180.0,0.52928992]
[1752188286788,0.29969101,116190.0,116180.0,0.52088772]
[1752188286992,0.29969101,116190.0,116180.0,0.16008772]
[1752188287292,0.29969101,116190.0,116180.0,0.16340772]
[1752188289795,0.29969101,116190.0,116180.0,0.52420772]
[1752188289989,0.29969101,116190.0,116180.0,0.16408772]
[1752188290190,0.29969101,116190.0,116180.0,0.16340772]
[1752188294703,0.07956,116190.0,116180.0,0.16340772]
[1752188294904,0.29969101,116190.0,116180.0,0.16340772]
[1752188295806,0.91202202,116190.0,116180.0,0.02226772]
[1752188296103,1.54388202,116190.0,116180.0,0.02226772]
[1752188298510,1.10362,116190.0,116180.0,0.02226772]
[1752188298809,1.54388202,116190.0,116180.0,0.02226772]
[1752188299910,1.29065101,116190.0,116180.0,0.10190772]
[1752188300105,0.66049101,116190.0,116180.0,0.16220772]
[1752188300514,0.07956,116190.0,116180.0,0.52300772]
[1752188300807,0.29969101,116190.0,116180.0,0.52368772]
[1752188301008,0.29969101,116190.0,116180.0,0.16288772]
[1752188301209,0.29969101,116190.0,116180.0,0.16220772]
[1752188301913,0.66049101,116190.0,116180.0,0.16220772]
[1752188302113,0.29969101,116190.0,116180.0,0.16220772]
[1752188303515,0.88062202,116190.0,116180.0,0.05226772]
[1752188303704,0.94372202,116190.0,116180.0,0.05226772]
[1752188304212,0.94372202,116190.0,116180.0,0.07585982]
[1752188304416,0.94372202,116190.0,116180.0,0.05226772]
[1752188304614,0.94372202,116190.0,116180.0,0.0758602]
[1752188304811,0.94372202,116190.0,116180.0,0.02226772]
[1752188306115,0.94372202,116190.0,116180.0,0.004]
[1752188307615,0.50346,116190.0,116180.0,0.004]
[1752188307919,0.72359101,116190.0,116180.0,0.0531]
[1752188308417,0.72359101,116190.0,116180.0,0.0856]
[1752188310021,1.32227101,116190.0,116180.0,0.0365]
[1752188310213,1.54240202,116190.0,116180.0,0.0365]
[1752188310719,0.94372202,116190.0,116180.0,0.0365]
[1752188310912,1.32227101,116190.0,116180.0,0.0365]
[1752188311112,1.32227101,116190.0,116180.0,0.0856]
[1752188313519,1.54240202,116190.0,116180.0,0.0856]
[1752188313723,1.10214,116190.0,116180.0,0.0856]
[1752188313916,1.54240202,116190.0,116180.0,0.0856]
[1752188314119,1.32227101,116190.0,116180.0,0.0856]
[1752188314421,1.10214,116190.0,116180.0,0.0856]
[1752188314722,1.32227101,116190.0,116180.0,0.0856]
[1752188315221,1.54340202,116190.0,116170.0,0.0809]
[1752188315521,0.29888101,116180.0,116170.0,0.16064869]
[1752188316219,0.30749597,116180.0,116170.0,0.16064869]
[1752188316618,0.33799597,116180.0,116170.0,0.12884869]
[1752188316922,0.33799597,116180.0,116170.0,0.12984869]
[1752188317415,0.33799597,116180.0,116170.0,0.11639]
[1752188317818,0.33799597,116180.0,116170.0,0.0832]
[1752188319119,0.69879597,116180.0,116170.0,0.0832]
[1752188319325,0.70079597,116180.0,116170.0,0.001]
[1752188319628,0.68646597,116180.0,116160.0,0.10050498]
[1752188319820,1.88986101,116170.0,116160.0,0.08282169]
[1752188320119,1.88986101,116170.0,116160.0,0.08292169]
[1752188321425,1.89086101,116170.0,116160.0,0.08292169]
[1752188321726,1.89086101,116170.0,116160.0,0.03382169]
[1752188322029,1.92196101,116170.0,116160.0,0.03382169]
[1752188324422,0.04783,116160.0,116140.0,0.0491]
[1752188324630,1.85692101,116150.0,116140.0,0.0305]
[1752188324828,1.85692101,116150.0,116140.0,0.0796]
[1752188325020,1.27599,116150.0,116140.0,0.0796]
[1752188325215,1.85692101,116150.0,116140.0,0.0796]
[1752188325524,1.85692101,116150.0,116140.0,0.0305]
[1752188325721,0.07875,116140.0,116130.0,0.0822]
[1752188325923,0.29888101,116140.0,116130.0,0.18660568]
[1752188326119,0.29888101,116140.0,116130.0,0.14015669]
[1752188326323,0.29888101,116140.0,116130.0,0.27469057]
[1752188326524,0.29888101,116140.0,116130.0,0.24724087]
[1752188326726,0.29888101,116140.0,116130.0,0.20080356]
[1752188326928,0.29888101,116140.0,116130.0,0.2573376]
[1752188327129,0.29888101,116140.0,116130.0,0.28614013]
[1752188327526,0.29888101,116140.0,116130.0,0.24724087]
[1752188327722,0.29888101,116140.0,116130.0,0.24723085]
[1752188327927,0.29888101,116140.0,116130.0,0.20080356]
[1752188328331,0.29888101,116140.0,116130.0,0.21090048]
[1752188328525,0.65968101,116140.0,116130.0,0.20180356]
[1752188328934,0.65968101,116140.0,116130.0,0.21190064]
[1752188329129,0.69128101,116140.0,116130.0,0.21190064]
[1752188329329,0.69128101,116140.0,116130.0,0.20380356]
[1752188329535,0.69128101,116140.0,116130.0,0.21390075]
[1752188330233,0.69128101,116140.0,116130.0,0.20380356]
[1752188330434,0.76147181,116140.0,116130.0,0.20380356]
[1752188330638,0.76147181,116140.0,116130.0,0.08841356]
[1752188330830,0.69128101,116140.0,116130.0,0.08841356]
[1752188331836,0.70005278,116140.0,116130.0,0.08841356]
[1752188334034,0.47992177,116140.0,116130.0,0.13598356]
[1752188334338,0.70005278,116140.0,116130.0,0.16918356]
[1752188334538,0.70005278,116140.0,116130.0,0.20246356]
[1752188335837,0.7703896,116140.0,116130.0,0.20246356]
[1752188338535,0.7703896,116140.0,116130.0,0.21529632]
[1752188339736,0.7703896,116140.0,116130.0,0.20246356]
[1752188340045,0.7703896,116140.0,116130.0,0.21529068]
[1752188340641,0.7703896,116140.0,116130.0,0.20246356]
[1752188340936,0.7387896,116140.0,116130.0,0.20246356]
[1752188341139,0.07994,116140.0,116130.0,0.42259457]
[1752188341340,0.07994,116140.0,116130.0,0.20314356]
[1752188341646,0.03092,116140.0,116130.0,0.42259457]
[1752188341837,0.03092,116140.0,116130.0,0.42331457]
[1752188342043,0.04902,116150.0,116130.0,0.95630707]
[1752188342241,0.03074,116150.0,116140.0,0.09778]
[1752188342736,0.29989101,116150.0,116140.0,0.09778]
[1752188342940,0.07976,116150.0,116140.0,0.14535]
[1752188343642,0.29989101,116150.0,116140.0,0.14535]
[1752188344632,0.07976,116150.0,116140.0,0.14535]
[1752188347946,0.29989101,116150.0,116140.0,0.14535]
[1752188348335,0.29989101,116150.0,116140.0,0.17388944]
[1752188348536,0.29989101,116150.0,116140.0,0.14535]
[1752188353247,0.07976,116150.0,116140.0,0.14535]
[1752188353550,0.29989101,116150.0,116140.0,0.14535]
[1752188354144,0.07976,116150.0,116140.0,0.14535]
[1752188354350,0.29989101,116150.0,116140.0,0.14535]
[1752188354538,0.66069101,116150.0,116140.0,0.14535]
[1752188354739,0.69069101,116150.0,116140.0,0.14535]
[1752188355139,0.32989101,116150.0,116140.0,0.14535]
[1752188355342,0.69069101,116150.0,116140.0,0.14535]
[1752188355850,0.32989101,116150.0,116140.0,0.14535]
[1752188356845,0.69069101,116150.0,116140.0,0.14535]
[1752188357148,0.32989101,116150.0,116140.0,0.14535]
[1752188357546,0.69069101,116150.0,116140.0,0.14535]
[1752188358745,0.32989101,116150.0,116140.0,0.14535]
[1752188359450,0.69069101,116150.0,116140.0,0.14535]
[1752188360043,0.32989101,116150.0,116140.0,0.14535]
[1752188360245,0.69069101,116150.0,116140.0,0.14535]
[1752188360545,0.32989101,116150.0,116140.0,0.14535]
[1752188361140,0.29989101,116150.0,116140.0,0.14535]
[1752188361551,0.66069101,116150.0,116140.0,0.14535]
[1752188362155,0.29989101,116150.0,116140.0,0.14535]
[1752188362955,0.66069101,116150.0,116140.0,0.14535]
[1752188363953,0.69359101,116150.0,116140.0,0.14535]
[1752188364156,0.69359101,116150.0,116140.0,0.11405]
[1752188364455,0.72649101,116150.0,116140.0,0.11405]
[1752188364657,0.0766,116140.0,116130.0,0.16538356]
[1752188364856,0.29673101,116140.0,116130.0,0.19828356]
[1752188365362,0.32963101,116140.0,116130.0,0.19828356]
[1752188365955,0.32963101,116140.0,116130.0,0.16698356]
[1752188366754,0.32963101,116140.0,116130.0,0.16798356]
[1752188367259,0.32963101,116140.0,116130.0,0.19978356]
[1752188368159,0.69043101,116140.0,116130.0,0.19978356]
[1752188368552,0.29673101,116140.0,116130.0,0.19978356]
[1752188368855,0.29673101,116140.0,116130.0,0.23077734]
[1752188368856,0.25115101,116140.0,116130.0,0.23077734]
[1752188369058,0.25115101,116140.0,116130.0,0.19978356]
[1752188369660,0.25115101,116140.0,116130.0,0.23078357]
[1752188369959,0.29673101,116140.0,116130.0,0.19978356]
[1752188370260,0.0766,116140.0,116130.0,0.26833045]
[1752188370462,0.29673101,116140.0,116130.0,0.2408806]
[1752188370652,0.29673101,116140.0,116130.0,0.19978356]
[1752188372557,1.23364219,116160.0,116130.0,0.73260457]
[1752188372752,0.0766,116160.0,116150.0,0.25019101]
[1752188373061,0.03102,116160.0,116150.0,0.65910101]
[1752188373259,0.03102,116160.0,116150.0,0.72478101]
[1752188373562,0.0786,116170.0,116160.0,0.07817]
[1752188373762,0.29873101,116170.0,116160.0,0.14317]
[1752188374062,0.29873101,116170.0,116160.0,0.14117]
[1752188374561,0.65953101,116170.0,116160.0,0.14117]
[1752188375058,0.66153101,116170.0,116160.0,0.10857]
[1752188375361,0.72613101,116170.0,116160.0,0.10657]
[1752188376064,0.73491065,116170.0,116160.0,0.10657]
[1752188376967,0.73491065,116170.0,116160.0,0.12003109]
[1752188377263,0.73491065,116170.0,116160.0,0.13297748]
[1752188377865,0.73591065,116170.0,116160.0,0.11951446]
[1752188378366,0.73591065,116170.0,116160.0,0.11946355]
[1752188378867,0.73591065,116170.0,116160.0,0.13292472]
[1752188379968,0.73591065,116170.0,116160.0,0.11946355]
[1752188380166,0.73591065,116170.0,116160.0,0.13292472]
[1752188380369,0.66253101,116170.0,116160.0,0.13292472]
[1752188380667,0.66253101,116170.0,116160.0,0.15186355]
[1752188380868,0.30173101,116170.0,116160.0,0.13897]
[1752188381959,0.30173101,116170.0,116160.0,0.13997]
[1752188382766,0.30173101,116170.0,116160.0,0.001]
[1752188382970,0.30173101,116170.0,116150.0,0.3608]
[1752188382971,0.0766,116140.0,116130.0,0.13308356]
[1752188383268,1.85429101,116140.0,116130.0,0.14607619]
[1752188383470,1.85429101,116140.0,116130.0,0.17687619]
[1752188383768,1.85429101,116140.0,116130.0,0.20887619]
[1752188384168,1.88659101,116140.0,116130.0,0.1007842]
[1752188384369,2.10672202,116140.0,116130.0,0.0699842]
[1752188384566,2.13872202,116140.0,116130.0,0.0699842]
[1752188385266,2.13872202,116140.0,116130.0,0.05791356]
[1752188385865,2.31090252,116140.0,116130.0,0.05791356]
[1752188386065,2.48058842,116140.0,116120.0,0.06365427]
[1752188386265,0.86266202,116130.0,116120.0,0.06365427]
[1752188387066,0.87144222,116130.0,116120.0,0.06465427]
[1752188387471,1.04363752,116130.0,116120.0,0.06465427]
[1752188387868,1.04363752,116130.0,116120.0,0.06293199]
[1752188388070,1.12973762,116130.0,116100.0,0.04811]
[1752188388269,0.80106202,116110.0,116080.0,0.07989288]
[1752188388469,0.22013101,116090.0,116080.0,0.12199329]
[1752188388662,0.22013101,116090.0,116080.0,0.12199381]
[1752188389069,0.61213101,116090.0,116080.0,0.12199381]
[1752188389267,0.25133101,116090.0,116080.0,0.12199381]
[1752188389474,0.61213101,116090.0,116080.0,0.12199381]
[1752188389873,0.61213101,116090.0,116080.0,0.12299381]
[1752188390273,0.61213101,116090.0,116080.0,0.08283288]
[1752188390667,0.64453101,116090.0,116080.0,0.09293387]
[1752188391368,0.65315065,116090.0,116080.0,0.08283288]
[1752188391769,0.65415065,116090.0,116080.0,0.05083288]
[1752188394571,0.65415065,116090.0,116080.0,0.00272288]
[1752188394882,0.001,116090.0,116080.0,0.66467389]
[1752188395174,0.001,116090.0,116080.0,0.30463389]
[1752188395376,0.22113101,116090.0,116080.0,0.50564288]
[1752188395573,0.22113101,116090.0,116080.0,0.50640288]
[1752188396470,0.001,116090.0,116080.0,0.89880339]
[1752188396876,0.001,116090.0,116080.0,1.49732339]
[1752188400676,2.79066856,116120.0,116110.0,0.03287]
[1752188400677,0.95936,116120.0,116110.0,0.03287]
[1752188400869,0.58093101,116120.0,116110.0,0.08102]
[1752188401068,0.61253101,116120.0,116110.0,0.08102]
[1752188402079,0.61453101,116120.0,116110.0,0.11212]
[1752188402684,0.61653101,116120.0,116110.0,0.11212]
[1752188403179,0.61453101,116120.0,116110.0,0.11212]
[1752188403381,0.61553101,116120.0,116110.0,0.11212]
[1752188403580,0.65492857,116120.0,116110.0,0.11212]
[1752188403776,0.65392857,116120.0,116110.0,0.11212]
[1752188404981,0.61453101,116120.0,116110.0,0.11212]
[1752188405479,0.3628,116120.0,116110.0,0.11212]
[1752188405684,1.18145101,116120.0,116110.0,0.11212]
[1752188406386,1.1900703,116120.0,116110.0,0.11212]
[1752188406976,0.22213101,116120.0,116110.0,0.11212]
[1752188407474,0.22213101,116120.0,116110.0,0.14442]
[1752188408188,0.22113101,116120.0,116110.0,0.14442]
[1752188409983,0.22013101,116120.0,116110.0,0.14542]
[1752188410986,0.58093101,116120.0,116110.0,0.16976187]
[1752188411189,0.58093101,116120.0,116110.0,0.14542]
[1752188412091,0.22013101,116120.0,116110.0,0.14542]
[1752188412692,1.25335071,116130.0,116110.0,0.14542]
[1752188412894,1.25335071,116130.0,116120.0,0.11372]
[1752188413094,1.47348172,116130.0,116120.0,0.11372]
[1752188413994,1.47448172,116130.0,116110.0,0.11432]
[1752188414194,1.47448172,116130.0,116110.0,0.14702]
[1752188414195,0.22013101,116120.0,116110.0,0.14702]
[1752188414498,0.25093101,116120.0,116110.0,0.14702]
[1752188414795,0.25093101,116120.0,116110.0,0.2073]
[1752188415605,0.61173101,116120.0,116110.0,0.2073]
[1752188415906,0.22013101,116120.0,116110.0,0.175]
[1752188416094,0.002,116130.0,116120.0,0.2532301]
[1752188416406,0.002,116130.0,116120.0,0.96545101]
[1752188416601,0.002,116130.0,116120.0,0.746]
[1752188417397,0.002,116130.0,116120.0,0.749]
[1752188417603,0.22213101,116130.0,116120.0,0.749]
[1752188417797,0.22213101,116130.0,116120.0,1.1098]
[1752188418003,0.002,116130.0,116120.0,1.1098]
[1752188418908,0.22213101,116130.0,116120.0,1.1098]
[1752188419108,0.22313101,116130.0,116120.0,1.1098]
[1752188419807,0.22213101,116130.0,116120.0,1.1098]
[1752188419997,0.22213101,116130.0,116120.0,1.1108]
[1752188422009,0.22213101,116130.0,116120.0,0.5124]
[1752188422209,0.22213101,116130.0,116120.0,1.11072]
[1752188424005,0.22213101,116130.0,116120.0,0.5124]
[1752188424205,0.80306202,116130.0,116120.0,0.71702]
[1752188424406,0.83626202,116130.0,116120.0,0.68402]
[1752188424606,0.86836202,116130.0,116120.0,0.68402]
[1752188424813,0.86836202,116130.0,116120.0,0.0857]
[1752188425111,0.64823101,116130.0,116120.0,0.6833]
[1752188425409,0.86836202,116130.0,116120.0,0.68398]
[1752188426011,0.64823101,116130.0,116120.0,0.68398]
[1752188426401,0.64823101,116130.0,116120.0,0.71418]
[1752188426804,0.61613101,116130.0,116120.0,0.71418]
[1752188427705,0.61613101,116130.0,116120.0,0.74718]
[1752188429114,0.83626202,116130.0,116120.0,0.68398]
[1752188429315,0.86956202,116130.0,116120.0,0.68398]
[1752188431116,0.4293,116130.0,116120.0,0.68398]
[1752188431315,0.58293101,116130.0,116120.0,0.68398]
[1752188431516,0.58293101,116130.0,116120.0,0.74628]
[1752188431712,0.58293101,116130.0,116120.0,0.77059872]
[1752188431911,0.58293101,116130.0,116120.0,0.77060507]
[1752188432106,0.61493101,116130.0,116120.0,0.74628]
[1752188432307,0.61493101,116130.0,116120.0,0.71468]
[1752188432308,0.83506202,116130.0,116120.0,0.71468]
[1752188433112,0.86546202,116130.0,116120.0,0.71468]
[1752188433313,0.86546202,116130.0,116120.0,0.1164]
[1752188433514,0.86546202,116130.0,116120.0,0.11572]
[1752188433711,0.86546202,116130.0,116120.0,0.08502]
[1752188434913,1.46370202,116130.0,116120.0,0.05215]
[1752188435516,1.46370202,116130.0,116120.0,0.004]
[1752188436622,1.46370202,116130.0,116120.0,0.05084]
[1752188438723,1.24357101,116130.0,116120.0,0.05084]
[1752188438931,1.46370202,116130.0,116120.0,0.05084]
[1752188447133,1.46370202,116130.0,116120.0,0.08211]
[1752188447634,1.46370202,116130.0,116120.0,0.11221]
[1752188452838,1.46370202,116130.0,116120.0,0.16823861]
[1752188453040,1.46370202,116130.0,116120.0,0.14391]
[1752188459840,0.80306202,116130.0,116120.0,0.14391]
[1752188460043,0.002,116130.0,116120.0,0.53625111]
[1752188460246,0.002,116130.0,116120.0,0.89773111]
[1752188460441,0.06897615,116140.0,116120.0,0.97552101]
[1752188460649,1.19287537,116150.0,116130.0,0.2337552]
[1752188460953,1.19287537,116150.0,116140.0,0.11074]
[1752188461154,1.18413101,116150.0,116140.0,0.11074]
[1752188461341,0.58093101,116150.0,116140.0,0.11074]
[1752188461541,1.18433101,116150.0,116140.0,0.11074]
[1752188461939,1.18433101,116150.0,116140.0,0.11955505]
[1752188462140,1.18433101,116150.0,116140.0,0.11074]
[1752188462944,0.9642,116150.0,116140.0,0.11074]
[1752188463249,1.18533101,116150.0,116140.0,0.11074]
[1752188463749,1.18533101,116150.0,116140.0,0.14304]
[1752188464048,1.18533101,116150.0,116120.0,0.03268228]
[1752188464252,0.3608,116140.0,116130.0,0.08218]
[1752188464744,0.4249,116140.0,116120.0,0.06458228]
[1752188464939,1.24676,116130.0,116120.0,0.00172228]
[1752188465144,1.64046,116130.0,116120.0,0.00172228]
[1752188465347,2.08072202,116130.0,116120.0,0.00172228]
[1752188466044,1.64046,116130.0,116120.0,0.05190228]
[1752188466260,2.08072202,116130.0,116120.0,0.08490228]
[1752188466848,2.08072202,116130.0,116120.0,0.08790228]
[1752188468751,1.82769101,116130.0,116120.0,0.11886228]
[1752188468956,1.82769101,116130.0,116120.0,0.15036228]
[1752188470048,1.79649101,116130.0,116120.0,0.15036228]
[1752188470943,0.60808,116130.0,116120.0,0.15036228]
[1752188471160,0.64853554,116140.0,116130.0,0.08014]
[1752188471351,1.25657554,116140.0,116130.0,0.14264]
[1752188471552,1.69193605,116140.0,116120.0,0.00572228]
[1752188471752,0.83196202,116130.0,116120.0,0.00572228]
[1752188471956,0.86326202,116130.0,116120.0,0.00572228]
[1752188472455,0.86326202,116130.0,116120.0,0.00272228]
[1752188472857,0.86326202,116130.0,116120.0,0.00572228]
[1752188473153,0.86326202,116130.0,116120.0,0.03005279]
[1752188473361,0.86326202,116130.0,116120.0,0.05490228]
[1752188473858,0.86326202,116130.0,116120.0,0.05390228]
[1752188474958,0.86326202,116130.0,116120.0,0.05490228]
[1752188477554,0.86326202,116130.0,116120.0,0.00572228]
[1752188478062,0.86326202,116130.0,116120.0,0.05490228]
[1752188479461,0.86326202,116130.0,116120.0,0.00572228]
[1752188482259,1.03545732,116130.0,116120.0,0.00572228]
[1752188482660,0.86326202,116130.0,116120.0,0.00572228]
[1752188483363,0.423,116130.0,116120.0,0.00572228]
[1752188483567,0.86326202,116130.0,116120.0,0.00572228]
[1752188483964,1.03545732,116130.0,116120.0,0.00572228]
[1752188484864,0.5951953,116130.0,116120.0,0.00572228]
[1752188485068,0.86326202,116130.0,116120.0,0.00572228]
[1752188485964,0.423,116130.0,116120.0,0.00572228]
[1752188486177,2.07602202,116130.0,116120.0,0.00572228]
[1752188486956,2.07602202,116130.0,116120.0,0.05535228]
[1752188487460,2.07602202,116130.0,116120.0,0.08855228]
[1752188488965,2.07602202,116130.0,116120.0,0.00572228]
[1752188488966,2.24821732,116130.0,116120.0,0.00572228]
[1752188490568,0.1722101,116120.0,116110.0,0.02153]